Cogmind - Beta 9.6 *** ADVENTURER MODE // 2020.05.31 @ 23:52:45 Player: Wololo Result: Destroyed by G-47 Trooper with Particle Gun Performance ------------- Evolutions (2) 1000 Regions Visited (4) 800 Robots Destroyed (37) 185 Value Destroyed (1016) 1016 Prototype IDs (5) 100 Alien Tech Used (0) 0 Bonus (18) 18 TOTAL SCORE: 3119 Bonus ------- Follower Combat Kills 35 Friendly Fire -17 Cogmind --------- Core Integrity 0/550 Matter 253/300 Energy 100/100 System Corruption 0% Temperature Cool (102) Movement Core (100) Ox1 Location -8/Materials Parts ------- > --- POWER (2) -------- (None) > --- PROPULSION (2) --- (None) > --- UTILITY (5) ------ Small Storage Unit > --- WEAPON (2) ------- (None) > --- INVENTORY (6) ---- (None) Peak State ------------ > --- POWER ------------ Ion Engine Light Deuterium Engine > --- PROPULSION ------- Light Treads Light Treads > --- UTILITY ---------- Visual Processing Unit Targeting Computer ECM Suite Hardened Light Armor Plating Integration Mediator > --- WEAPON ----------- EM Pulse Gun Gauss Rifle > --- INVENTORY -------- Small Storage Unit Large Battery Sensor Array [Rating: 19] Favorites ----------- Power Ion Engine Engine Ion Engine Propulsion Light Treads Treads Light Treads Wheel Wheel Utility Visual Processing Unit Device Integration Mediator Storage Small Storage Unit Processor Visual Processing Unit Protection Hardened Light Armor Plating Weapon EM Pulse Gun Energy Gun EM Pulse Gun Ballistic Gun Assault Rifle Ballistic Cannon Improved Light Cannon Build | -11 -10 -9 -9 -8 ------- Run | Scr Mat Mat Min Mat Slots Evolved 4 | . . 2 . 2 Power 1 | . . . . 1 Propulsion . | . . . . . Utility 3 | . . 2 . 1 Weapon . | . . . . . Parts Attached 28 | 5 8 7 . 8 Power 4 | 1 . 2 . 1 Engine 4 | 1 . 2 . 1 Core . | . . . . . Reactor . | . . . . . Propulsion 5 | 2 1 2 . . Treads 2 | . . 2 . . Leg . | . . . . . Wheel 3 | 2 1 . . . Hover . | . . . . . Flight . | . . . . . Utility 10 | . 3 3 . 4 Device 4 | . 1 2 . 1 Storage 3 | . 1 . . 2 Processor 2 | . 1 1 . . Hackware . | . . . . . Protection 1 | . . . . 1 Artifact . | . . . . . Weapon 9 | 2 4 . . 3 Energy Gun 4 | 1 2 . . 1 Energy Cannon . | . . . . . Ballistic Gun 4 | 1 1 . . 2 Ballistic Cannon 1 | . 1 . . . Launcher . | . . . . . Special Weapon . | . . . . . Impact Weapon . | . . . . . Slashing Weapon . | . . . . . Piercing Weapon . | . . . . . Special Melee Weapon . | . . . . . Unidentified Prototypes . | . . . . . Parts Lost 16 | . 1 . . 15 Power 2 | . . . . 2 Propulsion 2 | . . . . 2 Utility 7 | . . . . 7 Weapon 5 | . 1 . . 4 Highest Loss Streak 15 | . 1 . . 15 Average Slot Usage (%) 97 | . 97 99 100 85 Engine 11 | . 14 11 11 11 Treads 13 | . . 14 22 15 Wheel 9 | . 28 7 . . Device 17 | . 7 20 22 16 Storage 1 | . 5 1 . 1 Processor 18 | . 12 22 22 17 Protection 1 | . . . . 8 Energy Gun 11 | . 13 11 11 7 Ballistic Gun 4 | . 13 . . 2 Ballistic Cannon 7 | . . 11 11 5 Naked Turns . | . . . . . Heaviest Build 24 | 7 13 15 14 24 Greatest Support 40 | 20 26 40 40 40 Greatest Overweight (x) 4 | . . . . 4 Average Overweight (x) . | . . . . . Largest Inventory Capacity 6 | 4 6 6 4 6 Average Capacity 4 | 4 4 4 4 4 Most Carried 6 | 3 6 5 4 4 Average Carried 3 | . 3 3 3 2 Final Capacity 6 | 4 6 4 4 6 Final Carried 6 | . 6 3 4 . Class Distribution -------------------- 64% | Scavenger-Mutant 35% | Mutant Dominant Class ---------------- Mutant | -10/Materials Scavenger-Mutant | -9/Materials Scavenger-Mutant | -9/Mines Scavenger-Mutant | -8/Materials Resources | -11 -10 -9 -9 -8 ----------- Run | Scr Mat Mat Min Mat Matter Collected 602 | 265 118 76 97 46 Remotely . | . . . . . Salvage Created 1083 | 33 278 353 73 346 Parts 91 | 2 26 30 2 31 Haulers Intercepted . | . . . . . Recyclers Shooed 1 | . . . . 1 Parts Field Recycled . | . . . . . Retrieved Matter . | . . . . . Parts Self-Destructed . | . . . . . Prevented . | . . . . . Kills | -11 -10 -9 -9 -8 ------- Run | Scr Mat Mat Min Mat Combat Hostiles Destroyed 27 | 1 7 7 5 7 Guns 17 | 1 7 2 1 6 Cannons 9 | . . 5 3 1 AOE 1 | . . . 1 . Classes Destroyed 6 | 1 2 1 . 2 Worker 1 | . . . . 1 Watcher 9 | . 3 3 . 3 Swarmer 10 | . 3 . 4 3 Grunt 13 | 1 4 5 1 2 Sentry 3 | . . 2 . 1 Hunter 1 | . . . . 1 Best Kill Streak 5 | 1 3 5 4 3 Combat Bots Only 4 | 1 3 4 4 3 Max Kills in Single Turn 2 | 1 1 1 2 1 Gunslinging . | . . . . . Exploded 1 | . . . 1 . Melee . | . . . . . Uniques/NPCs Destroyed . | . . . . . Combat | -11 -10 -9 -9 -8 -------- Run | Scr Mat Mat Min Mat Damage Taken 1971 | 26 149 168 93 1535 Core 611 | 9 13 17 17 555 Absorbed by Shields . | . . . . . Core Remaining (%) 92 | 96 91 . 91 . Volleys Fired 85 | 5 26 16 7 31 Largest 2 | 2 2 2 2 2 Hottest 88 | 70 88 79 79 79 Shots Fired 145 | 8 43 32 14 48 Gun 115 | 8 43 16 7 41 Cannon 30 | . . 16 7 7 Launcher . | . . . . . Special . | . . . . . Kinetic 80 | 5 26 16 7 26 Thermal 25 | 3 17 . . 5 Explosive . | . . . . . Electromagnetic 40 | . . 16 7 17 Robot Hit Streak 20 | 6 13 13 20 9 Robot Miss Streak 3 | 1 3 2 1 2 Penetration Max 1 | . . . . 1 Secondary Targets 1 | . . . . 1 Max Gunslinging Chain 1 | . . . . 1 Shots Hit Robots 113 | 7 32 24 9 41 Core Hits 58 | 2 16 13 5 22 Critical Hits 1 | . . . . 1 Critical Kills 1 | . . . . 1 Critical Parts Destroyed . | . . . . . Melee Attacks . | . . . . . Impact . | . . . . . Slashing . | . . . . . Piercing . | . . . . . Sneak Attacks . | . . . . . Combat Hostiles . | . . . . . Follow-up Attacks . | . . . . . Damage Inflicted 2110 | 89 414 433 355 819 Guns 1485 | 89 414 203 72 707 Cannons 420 | . . 205 103 112 Explosions 205 | . . 25 180 . Melee . | . . . . . Ramming . | . . . . . Kinetic 1120 | 53 242 205 103 517 Thermal 492 | 36 172 25 180 79 Explosive . | . . . . . Electromagnetic 498 | . . 203 72 223 Impact . | . . . . . Slashing . | . . . . . Piercing . | . . . . . Highest Corruption . | . . . . . Average Corruption . | . . . . . Corruption Purged . | . . . . . Overload Shots . | . . . . . Overflow Damage 51 | . . 7 44 . Projectiles 9 | . . 7 2 . Explosions 42 | . . . 42 . Melee . | . . . . . Knockbacks 1 | . . . . 1 Impact . | . . . . . Kinetic 1 | . . . . 1 Secondary . | . . . . . Self-Inflicted Damage 37 | . . . 37 . Shots 2 | . . . 2 . Rammed . | . . . . . Targets Rammed . | . . . . . Kicked . | . . . . . Crushed . | . . . . . Highest Temperature 306 | 24 83 114 60 306 Average Temperature 60 | 11 24 50 23 98 Received Heat Transfer 816 | 18 78 108 . 612 Effects 1 | . . . . 1 Energy Bleed 1 | . . . . 1 Siege Activations . | . . . . . Robots Corrupted . | . . . . . Combat Hostiles . | . . . . . Parts Fried 2 | . . . . 2 Impact Corruptions . | . . . . . Robots Melted . | . . . . . Combat Hostiles . | . . . . . Parts Melted 2 | . 1 . 1 . Heat Transferred 1027 | 111 481 50 200 185 Parts Sabotaged . | . . . . . Parts Stolen . | . . . . . Parts Stripped . | . . . . . Power Chain Reactions 3 | . . 1 2 . Missiles Intercepted . | . . . . . Alert | -11 -10 -9 -9 -8 ------- Run | Scr Mat Mat Min Mat Peak Influence 290 | 20 227 290 227 113 Average Influence 94 | 2 91 157 95 38 Maximum Alert Level 1 | . 1 1 1 . Low Security (%) 81 | 100 82 60 82 100 Level 1 18 | . 17 39 17 . Level 2 . | . . . . . Level 3 . | . . . . . Level 4 . | . . . . . Level 5 . | . . . . . High Security . | . . . . . Max Security . | . . . . . Squads Dispatched 5 | . . 2 . 3 Investigation 2 | . . 1 . 1 Extermination . | . . . . . Reinforcement 3 | . . 1 . 2 Assault . | . . . . . Garrison . | . . . . . Intercept . | . . . . . Construction Impeded . | . . . . . Haulers Reinforced . | . . . . . Stealth | -11 -10 -9 -9 -8 --------- Run | Scr Mat Mat Min Mat Distress Signals 5 | . . 1 . 4 Communications Jammed . | . . . . . Distress Signals . | . . . . . Times Spotted 64 | 1 12 14 5 32 Peak Tracking Total 14 | 1 3 5 3 14 Tactical Retreats 3 | . 1 . . 2 Traps | -11 -10 -9 -9 -8 ------- Run | Scr Mat Mat Min Mat Traps Triggered . | . . . . . Indirectly . | . . . . . Trap Hack Attempts . | . . . . . Triggered . | . . . . . Disarmed . | . . . . . Reprogrammed . | . . . . . Reused . | . . . . . Traps Extracted . | . . . . . Installed . | . . . . . Triggered . | . . . . . Machines | -11 -10 -9 -9 -8 ---------- Run | Scr Mat Mat Min Mat Machines Disabled 6 | . . 2 1 3 Max in Single Turn 1 | . . 1 1 1 Machines Sabotaged . | . . . . . Garrisons Compromised . | . . . . . Overloaded Fab Kills . | . . . . . Fab Network Shutdowns . | . . . . . Hacking | -11 -10 -9 -9 -8 --------- Run | Scr Mat Mat Min Mat Machines Accessed 10 | . 8 1 . 1 Terminals 10 | . 8 1 . 1 Fabricators . | . . . . . Repair Stations . | . . . . . Recycling Units . | . . . . . Scanalyzers . | . . . . . Garrison Access . | . . . . . Total Hacks 39 | . 31 5 . 3 Successful 29 | . 22 4 . 3 Failed 10 | . 9 1 . . Catastrophic . | . . . . . Database Lockouts . | . . . . . Manual . | . . . . . Terminals 39 | . 31 5 . 3 Fabricators . | . . . . . Repair Stations . | . . . . . Recycling Units . | . . . . . Scanalyzers . | . . . . . Garrison Access . | . . . . . Terminal Hacks 29 | . 22 4 . 3 Record 4 | . 3 1 . . Prototype ID Bank 3 | . 2 1 . . Branch Access Points 1 | . 1 . . . Emergency Access Points 2 | . 1 1 . . Terminal Index 1 | . 1 . . . Recycling Unit Index 1 | . 1 . . . Alert Level 6 | . 4 1 . 1 Unreport Threat 1 | . . . . 1 Dispatch Records 2 | . 2 . . . Maintenance Status 2 | . 2 . . . Surveillance Status 1 | . 1 . . . Patrol Status 1 | . . . . 1 Transport Status 2 | . 2 . . . Reinforcement Status 1 | . 1 . . . Zone Layout 1 | . 1 . . . Fabricator Hacks . | . . . . . Repair Station Hacks . | . . . . . Recycling Unit Hacks . | . . . . . Scanalyzer . | . . . . . Garrison Access Hacks . | . . . . . Unauthorized Hacks . | . . . . . Terminals . | . . . . . Fabricators . | . . . . . Repair Stations . | . . . . . Recycling Units . | . . . . . Scanalyzers . | . . . . . Garrison Access . | . . . . . Data Cores Recovered . | . . . . . Used . | . . . . . Hacking Detections 8 | . 6 1 . 1 Full Trace Events 5 | . 3 1 . 1 Feedback Events . | . . . . . Feedback Blocked . | . . . . . Robot Schematics Acquired . | . . . . . Robots Built . | . . . . . Matter . | . . . . . Time . | . . . . . Total Robot Build Rating . | . . . . . Part Schematics Acquired . | . . . . . Parts Built . | . . . . . Matter . | . . . . . Time . | . . . . . Total Part Build Rating . | . . . . . Parts Repaired . | . . . . . Time . | . . . . . Parts Recycled . | . . . . . Recycled Matter . | . . . . . Retrieved Matter . | . . . . . Retrieved Components . | . . . . . Parts Scanalyzed . | . . . . . Part Schematics Acquired . | . . . . . Parts Damaged . | . . . . . Bothacking | -11 -10 -9 -9 -8 ------------ Run | Scr Mat Mat Min Mat Used RIF Installer . | . . . . . Robots Hacked . | . . . . . Non-combat . | . . . . . Combat . | . . . . . Robot Hacks Applied . | . . . . . Relay Couplers Released . | . . . . . Robots Rewired . | . . . . . Allies Hacked . | . . . . . Hacks Repelled . | . . . . . Allies | -11 -10 -9 -9 -8 -------- Run | Scr Mat Mat Min Mat Total Allies 3 | . . . 3 . Largest Group 3 | . . . 3 1 Highest-Rated Group 40 | . . . 40 16 Highest-Rated Ally 16 | . . . 16 16 Total Orders . | . . . . . Ally Attacks 14 | . . . 11 3 Total Damage 165 | . . . 149 16 Kills 1 | . . . 1 . Allies Corrupted . | . . . . . Allies Melted . | . . . . . Intel | -11 -10 -9 -9 -8 ------- Run | Scr Mat Mat Min Mat Robot Analysis Total . | . . . . . Derelict Logs Recovered 1 | . . . 1 . Drone Launches . | . . . . . Drone Recoveries . | . . . . . Exploration | -11 -10 -9 -9 -8 ------------- Run | Scr Mat Mat Min Mat Turns Passed 2375 | 66 637 397 967 308 Spaces Moved 1660 | 60 621 258 587 134 Core 22 | 17 . . . 5 Treads 855 | . . 139 587 129 Legs . | . . . . . Wheels 783 | 43 621 119 . . Hover . | . . . . . Flight . | . . . . . Fastest Speed 50 | 50 80 90 160 100 Average Speed 124 | 71 86 127 160 159 Slowest Speed 250 | 80 90 160 160 250 Overloaded Moves . | . . . . . Propulsion Burnouts . | . . . . . Robots Hopped . | . . . . . Cave-ins Triggered . | . . . . . Exploration Rate (%) 48 | 5 95 28 97 18 Regions Visited 4 Branch Regions 1 Pre-discovered Areas . | . . . . . Known Exits Taken . | . . . . . Unknown Exits Taken 4 | 1 1 1 1 . Scrap Searched 3 | . . . 3 . Spaces Dug . | . . . . . Terrain Destroyed 10 | . . 5 5 . Melee . | . . . . . Projectile 2 | . . 1 1 . AOE 8 | . . 4 4 . Actions | -11 -10 -9 -9 -8 --------- Run | Scr Mat Mat Min Mat Total 1836 | 74 682 296 601 183 Wait 22 | . 3 7 7 5 Move 1656 | 59 620 257 586 134 Hop . | . . . . . Pick Up 31 | 5 17 4 1 4 Fast Attach . | . . . . . Attach 26 | 5 7 6 . 8 Detach . | . . . . . Swap 2 | . 1 1 . . Drop 14 | . 8 5 . 1 Fire 85 | 5 26 16 7 31 Melee . | . . . . . Ram . | . . . . . Kick . | . . . . . Crush . | . . . . . Escape Stasis . | . . . . . Rewire . | . . . . . Trap . | . . . . . Miscellaneous . | . . . . . Route ------- -11/Scrapyard -10/Materials (discovered 4 exits: *Mat x3 / *Min) -9/Materials -9/Mines (discovered 2 exits: *Mat x2) -8/Materials History --------- Turn | Location | Event 2 | -11/Scrapyard | Met Revision 17 46 | -11/Scrapyard | Discovered new exit (range 8) 67 | -11/Scrapyard | Entered Materials 237 | -10/Materials | Discovered new exit (range 18) 288 | -10/Materials | Discovered new exit (range 18) 322 | -10/Materials | Build established: Mutant 448 | -10/Materials | Discovered new exit (range 10) 526 | -10/Materials | Identified exit to Mines 591 | -10/Materials | Discovered new exit (range 11) 704 | -10/Materials | Entered another Materials area 704 | -9/Materials | Evolved 2 slots: Utility x2 923 | -9/Materials | Discovered new exit (range 15) 1101 | -9/Materials | Entered Mines 1142 | -9/Mines | Build established: Scavenger-Mutant 1167 | -9/Mines | Assisted by bots powering up and referring to "LRC-V3" 1471 | -9/Mines | Discovered new exit (range 8) 1554 | -9/Mines | Learned Materials emergency access door positions 1599 | -9/Mines | Discovered new exit (range 5) 2068 | -9/Mines | Entered Materials 2068 | -8/Materials | Accompanied by 1 ally 2068 | -8/Materials | Evolved 2 slots: Power x1, Utility x1 2362 | -8/Materials | Core integrity fell below 50% 2374 | -8/Materials | Core integrity fell below 20% 2376 | -8/Materials | Destroyed by G-47 Trooper with Particle Gun Last Messages --------------- Penetrated by Slug. Ion Engine destroyed. Integration Mediator destroyed. Processing Tank disabled. Penetrated by Slug. G-47 Trooper destroyed. Minigun destroyed. ECM Suite destroyed. Targeting Computer destroyed. Acquired Particle Gun. Visual Processing Unit destroyed. Penetrated by Slug. Sensor Array destroyed. Terminal disabled. S-10 Pest destroyed. R-06 Scavenger collects Imp. Hover Unit. Penetrated by Slug. Particle Gun destroyed. Lrg. Battery destroyed. Penetrated by Slug. Map ----- +----------------------------------------------------+ | ?????????????????????????????????????????????????? | | ?????????????????????????????????????????????????? | | ?????????????????????????????????????????????????? | | ?????????????????????????????????????????????????? | | ?????????????????????????????????????????????????? | | ?????????????????????????????????????????????????? | | ?????????????????????????????????????????????????? | | ?????????????????????????????????????????????????? | | ?????????????????????????????????????????????????? | | ?????????????????????????????????????????????????? | | ?????????????????????????????????????????????????? | | ?????????????????????????????????????????????????? | | ?????????????????????????????????????????????????? | | ?????????????????????????????????????????????????? | | ?????????????????????????????????????????????????? | | ?????????????????????????????????????????????????? | | ?????????????????????????????????????????????????? | | ?????????????????????????????????????????????????? | | ?????????????????????????????????????????????????? | | ??????????????????##########?????????????????????? | | ??????????????????# #?##########??????????? | | ??????????????????# # ???????????? | | ??????????????????# """ # ???????????? | | ??????????????????# """ # ""???????????? | | ??????????????????# """ # """ ????????? | | ??????????????????# """ *@ # """ ????????? | | ??????????????????# ""gggg*# ???????? | | ??????????????????# g=s# ?????????? | | ?????????? ?????# g%h# """??????????? | | ?????????# ########+#+## """??????????? | | ?????????# """ ???????? | | ???????? ??????? | | ???????? """"""% =% %*" ??????? | | ????????????????""""" %! % T" %###/#####????????? | | ????????????????""""" [ = "" #?? ???####??????? | | ????????????????""""" =%= #?? "??# #????? | | ???????????????"""""" [* #???"??# #????? | | ???????????? #???"??# #????? | | ??????????# / #??? ?# #????? | | ??????????? ############### #??? ?# #????? | | ????????????????????????????# #???#+## "" #????? | | ????????????????????????????# #???# ## "T #????? | | ????????????????????????????# "#???# ## "" #????? | | ????????????????????????????# "%##### ## ?????? | | ????????????????????????????# " %! ##+###### # | | ????????????????????????????# ] = + | | ????????????????????????????# #### #### # | | ????????????????????????????####### #### #????? | | ??????????????????????????????????#! !## #????? | | ??????????????????????????????????#! !## #????? | +----------------------------------------------------+ Best States ------------- Heat Dissipation 31 Energy Generation 19 Energy Capacity 400 Matter Stores 300 Matter Capacity 300 Sight Range 18 Robot Scan Range 10 Terrain Scan Density 10 ECM Strength 1 Armor Coverage 150 Resistance: KI 20 Resistance: TH 20 Resistance: EX 20 Resistance: EM 20 Resistance: I 20 Resistance: S 20 Resistance: P 20 Evasion (%) 50 Targeting Accuracy 5 Recoil Reduction 2 Offensive Hacking 10 Item Schematics ----------------- None Robot Schematics ------------------ None Fabricated ------------ Nothing Alien Tech Used ----------------- None Achievements -------------- Everything Is Under Control Please Form A Line Challenges ------------ None Game ------ Seed SigixFireSuperbattery Manual? 0 Play Time 00:33:31 Cumulative 3.3 hours Start 2020.05.31 @ 23:19:51 End 2020.05.31 @ 23:52:45 Sessions 1 Manual Loads 0 Difficulty Adventurer Special Mode None Game No. 3 Rogue 0 Adventurer 3 Explorer 0 Win Type - Total 0 Types 0/0/0/0/0/0/0 Lore% 2 Gallery% 7 Achievement% 4 Wizard Run 0 Options --------- ASCII 0 Keyboard 0 Movement Mouse Keybinds 0 Fullscreen 1 Font 12/Proggy Map View 83x54 Tactical HUD 0 Map Filters NONE Filters NONE Steam 1 RUN: d51d4218-975e-4188-ba2f-7e6677eb9ebe